bitfinex-derivatives/quotes_ETHF0:USTF0_20250531
["timestamp","ask_amount","ask_price","bid_price","bid_amount"]
[1748726807305,2.36790574,2543.5,2543.4,0.85752339]
[1748726809407,1.10740574,2543.5,2543.4,2.15402339]
[1748726813302,1.10740574,2543.5,2543.4,2.08247]
[1748726813504,0.00590574,2543.5,2543.4,2.08247]
[1748726817409,0.00590574,2543.5,2543.4,2.15402339]
[1748726819412,0.00590574,2543.5,2543.4,2.08247]
[1748726820407,0.00590574,2543.5,2543.4,2.15402339]
[1748726821518,0.00590574,2543.5,2543.4,2.08247]
[1748726825422,5.74e-06,2543.5,2543.4,2.08247]
[1748726826326,5.74e-06,2543.5,2543.4,7.08247]
[1748726827930,2.34985123,2544.8,2544.7,0.78557]
[1748726828129,3.70605123,2544.8,2544.7,0.78557]
[1748726828627,2.34985123,2544.8,2544.7,0.78557]
[1748726829733,0.00389658,2545.0,2544.9,0.7855]
[1748726832231,1.36299658,2545.0,2544.9,0.7855]
[1748726832430,1.36299658,2545.0,2544.6,4.443]
[1748726832632,2.14847658,2545.0,2544.9,0.7855]
[1748726832834,2.14847658,2545.0,2544.8,0.78552]
[1748726833130,1.3591,2544.9,2544.8,0.78552]
[1748726835629,2.1446,2544.9,2544.8,0.78552]
[1748726835937,2.14461,2544.9,2544.8,0.78553]
[1748726836636,0.00389658,2545.0,2544.5,3.02215574]
[1748726836637,0.00389658,2545.0,2544.5,1.05810574]
[1748726836939,0.00389658,2545.0,2544.9,0.7855]
[1748726837835,0.00389658,2545.0,2544.9,1.8905]
[1748726840733,0.00389658,2545.0,2544.9,0.7855]
[1748726840933,1.34869658,2545.0,2544.9,0.7855]
[1748726842436,2.35979658,2545.0,2544.9,0.7855]
[1748726844335,3.14526658,2545.0,2544.9,0.7855]
[1748726845540,2.35979658,2545.0,2544.9,0.7855]
[1748726846434,1.01499658,2545.0,2544.9,0.7855]
[1748726850539,1.01499658,2545.0,2544.9,1.8722]
[1748726851838,0.00389658,2545.0,2544.9,1.8722]
[1748726857643,0.00389658,2545.0,2544.9,0.7855]
[1748726869844,1.09199658,2545.0,2544.9,0.7855]
[1748726870244,2.26436574,2545.0,2544.9,0.7855]
[1748726871349,3.56726574,2545.0,2544.9,0.7855]
[1748726882750,2.39489658,2545.0,2544.9,0.7855]
[1748726883158,3.56710425,2545.0,2544.9,0.7855]
[1748726888766,4.35257425,2545.0,2544.9,0.7855]
[1748726889163,5.36787425,2545.0,2544.9,0.7855]
[1748726900671,0.78553,2544.9,2544.8,0.78551]
[1748726901769,1.95773767,2544.9,2544.8,0.78551]
[1748726906275,1.95773767,2544.9,2544.8,2.15351]
[1748726911480,1.95773767,2544.9,2544.8,1.368]
[1748726913479,1.95773767,2544.9,2544.8,2.15353]
[1748726913780,1.95773767,2544.9,2544.8,1.368]
[1748726914281,1.95773767,2544.9,2544.8,2.15353]
[1748726914581,1.95773767,2544.9,2544.8,1.368]
[1748726914775,1.95773767,2544.9,2544.8,2.15353]
[1748726915381,1.95773767,2544.9,2544.8,1.368]
[1748726915575,1.95773767,2544.9,2544.8,2.15353]
[1748726916781,1.95773767,2544.9,2544.8,1.368]
[1748726917077,1.95773767,2544.9,2544.8,2.15353]
[1748726918179,1.95773767,2544.9,2544.8,1.368]
[1748726918377,0.78553,2544.8,2544.7,1.0139]
[1748726918577,0.78553,2544.8,2544.7,1.79947]
[1748726919078,0.78559,2544.7,2544.6,0.78556]
[1748726919284,0.78554,2544.8,2544.7,0.78553]
[1748726919979,0.78554,2544.8,2544.7,1.88783]
[1748726921184,1.95842412,2544.8,2544.7,1.88783]
[1748726929892,1.17288412,2544.8,2544.7,2.93213]
[1748726937597,1.17288412,2544.8,2544.7,4.23483]
[1748726941106,0.78551,2544.9,2544.8,0.78553]
[1748726941297,0.78551,2544.9,2544.8,2.15523]
[1748726943507,1.95816227,2544.9,2544.8,2.15523]
[1748726948707,1.17265227,2544.9,2544.8,2.15523]
[1748726949504,1.95815227,2544.9,2544.8,2.15523]
[1748726950108,1.17265227,2544.9,2544.8,2.15523]
[1748726951413,1.95815227,2544.9,2544.8,2.15523]
[1748726952209,3.04485227,2544.9,2544.8,2.15523]
[1748726953414,3.04485227,2544.9,2544.8,0.78553]
[1748726964223,1.95815227,2544.9,2544.8,0.78553]
[1748726964627,3.04305227,2544.9,2544.8,0.78553]
[1748726965628,0.78553,2544.8,2544.7,1.88786]
[1748726966128,1.95818227,2544.8,2544.7,1.88786]
[1748726996554,1.17265227,2544.8,2544.7,1.88786]
[1748726997756,1.95818227,2544.8,2544.7,1.88786]
[1748727001454,1.95818227,2544.8,2544.7,0.78556]
[1748727004258,1.95818227,2544.8,2544.7,2.11666]
[1748727009166,1.17265227,2544.8,2544.7,2.11666]
[1748727010765,1.95818227,2544.8,2544.7,2.11666]
[1748727013669,1.17265227,2544.8,2544.7,2.11666]
[1748727014772,1.17265227,2544.9,2544.8,0.78553]
[1748727015663,1.95815227,2544.9,2544.8,0.78553]
[1748727015870,3.05755227,2544.9,2544.8,0.78553]
[1748727026875,2.27205227,2544.9,2544.8,0.78553]
[1748727027077,1.17265227,2544.9,2544.8,0.78553]
[1748727031181,1.17265227,2544.9,2544.8,3.99333]
[1748727032679,1.17265227,2544.9,2544.8,5.07623]
[1748727032880,1.17654885,2545.0,2544.9,0.7855]
[1748727033181,1.17654885,2545.0,2544.9,2.0943]
[1748727035984,0.00389658,2545.0,2544.9,2.0943]
[1748727037185,1.17654885,2545.0,2544.9,2.0943]
[1748727039590,0.00389658,2545.0,2544.9,2.0943]
[1748727041191,1.02599658,2545.0,2544.9,2.0943]
[1748727041391,2.19864885,2545.0,2544.9,2.0943]
[1748727051295,1.02599658,2545.0,2544.9,2.0943]
[1748727056702,1.02599658,2545.0,2544.9,2.16585339]
[1748727058701,1.02599658,2545.0,2544.9,2.0943]
[1748727059700,1.02599658,2545.0,2544.9,2.16585339]
[1748727061600,0.00389658,2545.0,2544.9,2.16585339]
[1748727063901,1.0818,2545.4,2545.3,0.78538]
[1748727064601,1.0818,2545.4,2545.3,2.04398]
[1748727065799,2.27237496,2545.4,2545.3,2.04398]
[1748727068200,1.19057496,2545.4,2545.3,2.04398]
[1748727070203,3.2078,2545.5,2545.4,0.78535]
[1748727071907,3.2078,2545.9,2545.8,0.78519]
[1748727072106,3.2078,2545.9,2545.5,1.96325]
[1748727072107,3.37985123,2546.0,2545.9,0.78519]
[1748727072309,1.03,2546.0,2545.9,0.78519]
[1748727073306,1.03,2546.0,2545.9,2.11289]
[1748727073700,5.0086,2546.2,2546.1,0.78513]
[1748727074507,6.19717943,2546.2,2546.1,0.78513]
[1748727074804,7.53367943,2546.2,2546.1,0.78513]
[1748727076611,5.41207943,2546.2,2546.1,0.78513]
[1748727077608,5.41207943,2546.2,2546.1,1.79983]
[1748727078209,5.41207943,2546.2,2546.1,1.79295047]
[1748727078710,2.34985123,2546.7,2546.1,13.0195]
[1748727078899,3.91825437,2546.9,2546.8,0.78492]
[1748727079307,3.91825437,2546.9,2546.7,3.16452]
[1748727079510,3.91825437,2546.9,2546.8,1.3005]
[1748727080008,1.79884,2547.1,2546.8,1.3005]
[1748727080400,1.014,2547.1,2546.8,1.3005]
[1748727080606,1.79883,2547.1,2546.8,1.3005]
[1748727081305,1.014,2547.1,2546.9,3.2078]
[1748727081911,1.79883,2547.1,2546.9,4.5631]
[1748727082412,1.014,2547.1,2546.9,4.5631]
[1748727082608,1.014,2547.1,2547.0,1.3553]
[1748727083509,0.78481,2547.2,2547.0,1.3553]
[1748727083907,0.78481,2547.2,2547.1,1.0859]
[1748727088313,0.78483,2547.1,2547.0,1.3553]
[1748727094325,0.85638339,2547.1,2547.0,1.3553]
[1748727100726,0.78486,2547.0,2546.9,4.2903]
[1748727102126,1.89266,2547.0,2546.9,4.2903]
[1748727102427,1.89266,2547.0,2546.9,1.0825]
[1748727104114,0.78489,2546.9,2546.8,3.99271]
[1748727104315,0.78489,2546.9,2546.8,3.2078]
[1748727104721,0.78489,2546.9,2546.8,3.99272]
[1748727104929,0.78489,2546.9,2546.8,5.23782]
[1748727106725,0.78489,2546.9,2546.8,4.50664381]
[1748727107429,0.78489,2546.9,2546.8,5.29156381]
[1748727108423,0.78489,2546.9,2546.8,3.26154381]
[1748727108930,3.16029,2546.9,2546.8,3.26154381]
[1748727110326,3.16029,2546.9,2546.8,0.05374381]
[1748727110530,3.44696411,2546.9,2546.8,0.05374381]
[1748727110826,0.78507,2546.3,2546.2,3.2078]
[1748727111228,0.78507,2546.3,2546.2,3.9929]
[1748727111632,2.10597,2546.3,2546.2,3.2078]
[1748727112731,2.10597,2546.3,2546.2,3.9929]
[1748727113835,0.78507,2546.3,2546.2,3.9929]
[1748727116528,2.87046,2546.4,2546.3,0.78507]
[1748727120331,0.7851,2546.3,2546.2,0.78509]
[1748727120630,2.0276,2546.3,2546.2,0.78509]
[1748727121933,1.2425,2546.3,2546.2,0.78509]
[1748727122135,2.02757,2546.3,2546.2,0.78509]
[1748727122638,1.2425,2546.3,2546.2,0.78509]
[1748727122934,2.02757,2546.3,2546.2,0.78509]
[1748727124439,0.78507,2546.3,2546.2,0.78509]
[1748727125631,0.85662339,2546.3,2546.2,0.78509]
[1748727137652,0.7851,2546.2,2546.1,3.16621]
[1748727142457,0.07155339,2546.3,2546.2,0.7851]
[1748727142655,0.85662339,2546.3,2546.2,2.147]
[1748727143759,0.85662339,2546.3,2546.2,0.7851]
[1748727143959,2.11222339,2546.3,2546.2,0.7851]
[1748727146162,0.85662339,2546.3,2546.2,1.8016]
[1748727149166,0.85662339,2546.3,2546.2,3.1454]
[1748727150066,0.78507,2546.3,2546.2,3.1454]
[1748727151064,0.85662339,2546.3,2546.2,3.1454]
[1748727157568,0.07155339,2546.3,2546.2,3.1454]
[1748727158773,0.85662339,2546.3,2546.2,3.1454]
[1748727164585,0.07155339,2546.3,2546.2,3.1454]
[1748727167478,0.07155339,2546.3,2546.2,6.3532]
[1748727168881,0.07155339,2546.3,2546.2,3.1454]
[1748727169881,0.85662339,2546.3,2546.2,3.1454]
[1748727172088,0.85662339,2546.3,2546.2,6.3532]
[1748727174393,0.85662339,2546.3,2546.2,3.1454]
[1748727175693,0.07155339,2546.3,2546.2,3.1454]
[1748727175892,0.85662339,2546.3,2546.2,3.1454]
[1748727183104,0.85662339,2546.3,2546.2,1.0165]
[1748727183301,0.85662339,2546.3,2546.1,3.2078]
[1748727183601,0.78507,2546.3,2546.2,0.7851]
[1748727184603,0.85662339,2546.3,2546.2,0.7851]
[1748727185499,1.64672339,2546.3,2546.2,0.7851]
[1748727189502,0.86165339,2546.3,2546.2,0.7851]
[1748727191005,1.64672339,2546.3,2546.2,0.7851]
[1748727191207,0.86165339,2546.3,2546.2,0.7851]
[1748727191712,0.7901,2546.3,2546.2,0.7851]
[1748727192611,0.86165339,2546.3,2546.2,0.7851]
[1748727194616,0.7901,2546.3,2546.2,0.7851]
[1748727194810,1.57517,2546.3,2546.2,0.7851]
[1748727195010,1.6016,2546.3,2546.2,0.7851]
[1748727195617,1.67315339,2546.3,2546.2,0.7851]
[1748727199712,2.45822339,2546.3,2546.2,0.7851]
[1748727199912,1.67315339,2546.3,2546.2,0.7851]
[1748727201017,2.45822339,2546.3,2546.2,0.7851]
[1748727201719,1.67315339,2546.3,2546.2,0.7851]
[1748727205719,2.45822339,2546.3,2546.2,0.7851]
[1748727205923,1.6016,2546.3,2546.2,0.7851]
[1748727206127,2.38667,2546.3,2546.2,0.7851]
[1748727206325,1.6016,2546.3,2546.2,0.7851]
[1748727206826,1.67315339,2546.3,2546.2,0.7851]
[1748727207126,2.45822339,2546.3,2546.2,0.7851]
[1748727207326,3.77102339,2546.3,2546.2,0.7851]
[1748727208521,0.7851,2546.2,2546.1,0.78511]
[1748727208726,0.78516,2546.1,2546.0,0.78515]
[1748727209625,0.78516,2546.0,2545.9,0.79107403]
[1748727209826,1.61676,2546.0,2545.9,0.79107403]
[1748727213732,0.8316,2546.0,2545.9,0.79107403]
[1748727214629,1.61677,2546.0,2545.9,0.00589403]
[1748727215230,1.61677,2546.0,2545.9,0.79109403]
[1748727218436,1.61677,2546.0,2545.9,0.00589403]
[1748727219538,1.61677,2546.0,2545.9,0.79109403]
[1748727219738,2.76748434,2546.0,2545.9,0.79109403]
[1748727219933,2.83903773,2546.0,2545.9,0.00589403]
[1748727220139,25.71903773,2546.0,2545.9,0.00589403]
[1748727220529,27.04993773,2546.0,2545.9,0.00589403]
[1748727223138,0.78532,2545.5,2545.4,6.09553]
[1748727224444,0.78532,2545.5,2545.4,5.3102]
[1748727226443,0.98132,2545.5,2545.4,5.3102]
[1748727226845,0.98132,2545.5,2545.4,4.0396]
[1748727227443,0.78538,2545.3,2545.2,0.00589403]
[1748727227740,0.78538,2545.3,2545.2,0.79329403]
[1748727227945,0.78538,2545.3,2545.2,2.04709403]
[1748727230245,0.78538,2545.3,2545.2,0.79329403]
[1748727230443,0.78538,2545.3,2544.8,3.2078]
[1748727230444,19.9913,2545.4,2544.8,0.22615]
[1748727230644,3.2078,2544.6,2543.6,7.80202036]
[1748727230843,3.99367,2543.7,2543.6,5.43024036]
[1748727231039,22.50867,2543.7,2543.6,3.15889036]
[1748727231237,27.50867,2543.7,2543.6,0.07916672]
[1748727231548,0.78594,2543.5,2543.4,7.5e-07]
[1748727231746,1.00224927,2543.5,2543.4,7.5e-07]
[1748727231942,6.00224927,2543.5,2543.4,7.5e-07]
[1748727232151,5.78594,2543.5,2543.4,7.5e-07]
[1748727233846,7.25878413,2543.5,2543.4,7.5e-07]
[1748727234247,8.57328413,2543.5,2543.4,7.5e-07]
[1748727236053,8.96658584,2543.5,2543.4,7.5e-07]
[1748727239255,9.16308584,2543.5,2543.4,7.5e-07]
[1748727240260,11.50221575,2543.5,2543.4,7.5e-07]
[1748727242557,9.16308584,2543.5,2543.4,7.5e-07]
[1748727244257,9.16308584,2543.5,2543.4,4.14e-06]
[1748727244952,0.78625,2542.5,2542.4,2.1366]
[1748727245152,3.99405,2542.5,2542.4,2.1366]
[1748727247053,0.78625,2542.5,2542.4,2.1366]
[1748727247259,3.99405,2542.5,2542.4,2.1366]
[1748727247457,5.45555731,2542.5,2542.4,2.1366]
[1748727248464,5.44726308,2542.5,2542.4,2.1366]
[1748727249364,5.67946387,2542.5,2542.4,1.3109]
[1748727249561,0.78631,2542.3,2542.2,0.00589403]
[1748727249866,1.01851604,2542.3,2542.2,0.00589403]
[1748727250054,1.01832639,2542.3,2542.2,0.00589403]
[1748727250259,0.78631,2542.3,2542.2,0.00589403]
[1748727250459,2.47983356,2542.3,2542.2,0.00589403]
[1748727250762,2.24781731,2542.3,2542.2,0.00589403]
[1748727250959,2.47983228,2542.3,2542.2,0.00589403]
[1748727251565,2.24781731,2542.3,2542.2,0.00589403]
[1748727253267,4.56246949,2542.3,2542.2,0.00589403]
[1748727254565,4.79446831,2542.3,2542.2,0.00589403]
[1748727254762,4.56246949,2542.3,2542.2,0.00589403]
[1748727255072,4.56246949,2542.3,2542.2,4.03e-06]
[1748727255367,2.24781731,2542.3,2542.2,4.03e-06]
[1748727255566,2.44441731,2542.3,2542.2,4.03e-06]
[1748727255767,3.81671731,2542.3,2542.2,4.03e-06]
[1748727256769,0.78643,2541.9,2541.8,1.3176]
[1748727256971,3.99423,2541.9,2541.8,1.3176]
[1748727257265,5.45573731,2541.9,2541.8,1.3176]
[1748727258064,5.68778293,2541.9,2541.8,1.3176]
[1748727258367,5.45573731,2541.9,2541.8,1.3176]
[1748727259469,5.45573731,2541.9,2541.8,1.38915339]
[1748727259669,5.68755068,2541.9,2541.8,1.38915339]
[1748727260166,5.45573731,2541.9,2541.8,1.38915339]
[1748727260367,5.68756625,2541.9,2541.8,1.38915339]
[1748727260672,5.45573731,2541.9,2541.8,1.38915339]
[1748727261362,0.78649,2541.7,2541.6,0.00589403]
[1748727261563,19.43406207,2541.7,2541.6,0.00589403]
[1748727261766,19.43406205,2541.7,2541.6,0.00589403]
[1748727262067,19.20249,2541.7,2541.6,0.00589403]
[1748727262274,22.41029,2541.7,2541.6,0.00589403]
[1748727262465,22.64182561,2541.7,2541.6,0.00589403]
[1748727262666,22.41029,2541.7,2541.6,0.00589403]
[1748727263170,0.78662,2541.3,2541.2,0.78663]
[1748727263374,3.2078,2541.7,2541.0,4.084]
[1748727263569,1.46150731,2541.7,2541.6,0.78652]
[1748727264068,1.46150731,2541.7,2541.6,5.78652]
[1748727264270,1.46150731,2541.7,2541.6,0.78652]
[1748727264472,1.46150731,2541.7,2541.6,5.78652]
[1748727266573,1.46150731,2541.7,2541.6,6.56512]
[1748727267274,4.59409048,2541.7,2541.6,6.56512]
[1748727268969,3.91426361,2541.9,2541.8,0.78646]
[1748727269272,3.91426361,2541.9,2541.8,1.78546]
[1748727269677,3.91426361,2541.9,2541.8,1.85701339]
[1748727269972,4.70069361,2541.9,2541.8,1.85701339]
[1748727272070,3.91426361,2541.9,2541.8,1.85701339]
[1748727272577,4.70069361,2541.9,2541.8,1.85701339]
[1748727273676,4.89739361,2541.9,2541.8,1.85701339]
[1748727273977,4.11096361,2541.9,2541.8,1.85701339]
[1748727274167,0.98313,2541.9,2541.8,1.85701339]
[1748727274775,0.1967,2541.9,2541.8,1.85701339]
[1748727275177,0.98313,2541.9,2541.8,1.85701339]
[1748727275875,0.1967,2541.9,2541.8,1.85701339]
[1748727276480,0.1967,2541.9,2541.8,6.85701339]
[1748727276980,0.1967,2541.9,2541.8,10.06481339]
[1748727277982,0.1967,2541.9,2541.8,6.85701339]
[1748727278178,0.1967,2541.9,2541.8,10.06481339]
[1748727278484,0.1967,2541.9,2541.8,14.14981339]
[1748727278680,3.91426361,2542.1,2542.0,0.7864]
[1748727278879,5.47996905,2542.2,2542.1,0.78637]
[1748727279475,5.47996905,2542.2,2542.1,5.78637]
[1748727279885,5.47996905,2542.2,2542.1,7.11247]
[1748727280583,2.35361512,2542.4,2542.3,0.78631]
[1748727280783,2.35361512,2542.4,2542.3,4.87131]
[1748727281283,2.35361512,2542.4,2542.3,6.19741]
[1748727281678,0.98845403,2542.5,2542.4,0.78628]
[1748727281885,0.98845403,2542.5,2542.4,2.14118]
[1748727283384,2.26371467,2542.5,2542.4,2.14118]
[1748727287699,1.47745467,2542.5,2542.4,2.14118]
[1748727287899,2.26370467,2542.5,2542.4,2.14118]
[1748727288202,0.98844403,2542.5,2542.4,2.14118]
[1748727288796,0.20219403,2542.5,2542.4,7.14118]
[1748727289097,0.78619,2542.7,2542.6,0.78618]
[1748727289899,0.78618,2542.8,2542.7,0.78615]
[1748727290600,2.05718,2542.8,2542.7,0.78615]
[1748727292102,3.33114611,2542.8,2542.7,0.78615]
[1748727293717,1e-08,2543.0,2542.9,0.78612]
[1748727294004,1e-08,2543.0,2542.9,3.99392]
[1748727294203,1e-08,2543.0,2542.9,8.99392]
[1748727294400,1e-08,2543.0,2542.9,9.75462]
[1748727294905,1e-08,2543.0,2542.9,11.11322]
[1748727296207,1e-08,2543.0,2542.9,15.11822]
[1748727301206,1e-08,2543.0,2542.9,18.03122]
[1748727301515,3.2078,2544.5,2544.4,0.78566]
[1748727301701,5.303,2544.5,2544.4,0.78566]
[1748727302804,6.0766,2544.5,2544.4,0.78566]
[1748727303006,6.86223,2544.5,2544.4,0.78566]
[1748727303509,6.0766,2544.5,2544.4,0.78566]
[1748727303810,6.86223,2544.5,2544.4,0.78566]
[1748727306506,6.0766,2544.5,2544.4,0.78566]
[1748727308016,6.86223,2544.5,2544.4,0.78566]
[1748727308711,6.0766,2544.5,2544.2,0.00589403]
[1748727308911,0.78569,2544.3,2544.2,0.79157403]
[1748727309915,0.78567,2544.4,2544.3,0.78566]
[1748727310216,2.11617,2544.4,2544.3,0.78566]
[1748727310417,0.78569,2544.3,2544.2,0.79159403]
[1748727310606,2.11619,2544.3,2544.2,0.79159403]
[1748727311314,1.3305,2544.3,2544.2,0.79159403]
[1748727314518,2.11619,2544.3,2544.2,0.79159403]
[1748727315011,1.3305,2544.3,2544.2,0.79159403]
[1748727318118,2.11619,2544.3,2544.2,0.79159403]
[1748727318615,1.3305,2544.3,2544.2,0.79159403]
[1748727328422,2.57686666,2544.3,2544.2,0.79159403]
[1748727340724,2.77306666,2544.3,2544.2,0.79159403]
[1748727353930,1.44256666,2544.3,2544.2,0.79159403]
[1748727355737,1.44256666,2544.3,2544.2,4.67659403]
[1748727358439,1.44256666,2544.3,2544.2,7.88439403]
[1748727358841,1.44256666,2544.3,2544.2,12.88439403]
[1748727359035,1.44256666,2544.3,2544.2,14.25219403]
[1748727359236,1.44256666,2544.3,2544.2,17.16519403]
[1748727359440,0.00589403,2544.7,2544.6,0.7856]
[1748727360442,0.00589403,2544.7,2544.6,2.1534]
[1748727368650,0.00589403,2544.7,2544.6,6.0374]
[1748727370939,0.67119403,2544.7,2544.6,6.0374]
[1748727372147,0.00589403,2544.7,2544.6,4.6696]
[1748727373048,0.00589403,2544.7,2544.6,6.0233]
[1748727379761,0.6396,2545.2,2545.1,0.78544]
[1748727380161,3.2078,2545.4,2545.3,0.78538]
[1748727380356,1.9871,2545.7,2545.6,0.78529]
[1748727381174,2.77236,2545.7,2545.6,0.78529]
[1748727382267,0.78529,2545.6,2545.5,0.7853]
[1748727382566,2.84393339,2545.7,2545.6,0.78529]
[1748727383065,2.05865339,2545.7,2545.6,0.78529]
[1748727383268,1.9871,2545.7,2545.6,0.78529]
[1748727384670,2.77236,2545.7,2545.6,0.78529]
[1748727389373,2.84391339,2545.7,2545.6,0.78529]
[1748727389972,2.05865339,2545.7,2545.6,0.78529]
[1748727390361,6.34595349,2546.8,2546.4,0.78504]
[1748727390664,3.10271512,2546.5,2546.4,0.78504]
[1748727391967,0.7491,2546.5,2546.4,0.78504]
[1748727392872,0.00585497,2546.7,2546.6,0.78498]
[1748727393169,0.00585497,2546.7,2546.6,3.99278]
[1748727393364,0.00585497,2546.7,2546.6,5.28428]
[1748727397573,0.00585497,2546.7,2546.6,5.27467207]
[1748727400275,0.00585497,2546.7,2546.6,0.77537207]
[1748727400673,1.25645497,2546.7,2546.6,0.77537207]
[1748727401379,2.04142497,2546.7,2546.5,0.78499]
[1748727401578,0.7247,2546.6,2546.5,0.78499]
[1748727401879,2.0367,2546.6,2546.5,0.78499]
[1748727402777,2.82168,2546.6,2546.5,0.78499]
[1748727402977,2.0367,2546.6,2546.5,0.78499]
[1748727404273,2.82168,2546.6,2546.5,0.78499]
[1748727407587,2.0367,2546.6,2546.5,0.78499]
[1748727409186,2.82168,2546.6,2546.5,0.78499]
[1748727409686,2.10825339,2546.6,2546.5,0.78499]
[1748727410086,2.89323339,2546.6,2546.5,0.78499]
[1748727411081,2.10825339,2546.6,2546.5,0.78499]
[1748727420682,3.34778852,2546.6,2546.5,0.78499]
[1748727422292,2.10825339,2546.6,2546.5,0.78499]
[1748727426396,0.79625339,2546.6,2546.5,0.78499]
[1748727429996,2.07965339,2546.6,2546.5,0.78499]
[1748727430292,7.03766707,2546.6,2546.2,0.00589403]
[1748727430498,0.78507,2546.3,2546.2,0.00589403]
[1748727430695,0.78507,2546.3,2546.2,0.79099403]
[1748727430892,2.80507,2546.3,2546.2,0.79099403]
[1748727431394,2.80507,2546.3,2546.2,0.00589403]
[1748727431597,12.91748368,2546.3,2546.2,0.00589403]
[1748727432195,13.14876746,2546.3,2546.2,0.00589403]
[1748727432395,12.91748368,2546.3,2546.2,0.00589403]
[1748727434500,0.78521,2545.9,2545.8,0.78521]
[1748727434703,3.99301,2545.9,2545.8,0.78521]
[1748727434890,0.78524,2545.8,2545.4,1.96336]
[1748727435092,0.78535,2545.4,2545.3,0.999]
[1748727435404,18.79735,2545.4,2545.3,0.999]
[1748727435592,25.08735,2545.4,2545.3,0.999]
[1748727436202,26.32876368,2545.4,2545.3,0.999]
[1748727437402,8.31676368,2545.4,2545.3,0.999]
[1748727437602,9.02296368,2545.4,2545.3,0.999]
[1748727438303,9.74766368,2545.4,2545.3,0.999]
[1748727438503,31.66366368,2545.4,2545.3,0.999]
[1748727438704,30.42225,2545.4,2545.3,0.999]
[1748727440894,33.63005,2545.4,2545.3,0.999]
[1748727445718,30.42225,2545.4,2545.3,0.999]
[1748727446017,33.63005,2545.4,2545.3,0.999]
[1748727447918,11.71405,2545.4,2545.3,0.999]
[1748727448119,25.791,2545.4,2545.3,1.78438]
[1748727448418,26.58435,2545.4,2545.3,1.78438]
[1748727450122,26.58435,2545.4,2545.3,1.85593339]
[1748727450623,25.87815,2545.4,2545.3,1.85593339]
[1748727450822,3.2078,2545.4,2545.3,1.85593339]
[1748727451220,3.2078,2545.4,2545.3,1.78438]
[1748727451817,1.3633,2546.1,2545.3,0.999]
[1748727452016,3.99295,2546.1,2546.0,0.78517]
[1748727452221,7.85095,2546.1,2546.0,0.78517]
[1748727452424,25.87295,2546.1,2546.0,0.78517]
[1748727452625,7.85095,2546.1,2546.0,0.78517]
[1748727452818,25.87195,2546.1,2546.0,0.78517]
[1748727453326,3.99295,2546.1,2546.0,1.78417]
[1748727453525,25.86995,2546.1,2546.0,1.78417]
[1748727454328,7.85095,2546.1,2546.0,1.78417]
[1748727454624,25.86695,2546.1,2546.0,1.78417]
[1748727455421,4.64315,2546.1,2546.0,1.78417]
[1748727456226,4.71470339,2546.1,2546.0,1.78417]
[1748727457123,0.85670339,2546.1,2546.0,1.78417]
[1748727457323,0.78515,2546.1,2546.0,1.78417]
[1748727457524,18.79315,2546.1,2546.0,1.78417]
[1748727458229,18.86470339,2546.1,2546.0,1.78417]
[1748727458728,20.09883027,2546.1,2546.0,1.78417]
[1748727459229,20.02727688,2546.1,2546.0,1.78417]
[1748727460329,20.09883027,2546.1,2546.0,1.78417]
[1748727461231,20.02727688,2546.1,2546.0,1.78417]
[1748727462137,2.01927688,2546.1,2546.0,1.78417]
[1748727463726,2.01927688,2546.1,2546.0,0.999]
[1748727464333,2.09083027,2546.1,2546.0,0.999]
[1748727464933,5.29863027,2546.1,2546.0,0.999]
[1748727465134,6.63793027,2546.1,2546.0,0.999]
[1748727469334,6.56637688,2546.1,2546.0,0.999]
[1748727470333,7.27227688,2546.1,2546.0,0.999]
[1748727470539,7.34383027,2546.1,2546.0,0.999]
[1748727474436,7.27227688,2546.1,2546.0,0.999]
[1748727475937,4.06447688,2546.1,2546.0,0.999]
[1748727477536,4.13603027,2546.1,2546.0,0.999]
[1748727477938,4.36702798,2546.1,2546.0,0.999]
[1748727478138,4.367028,2546.1,2546.0,0.999]
[1748727478538,4.06447688,2546.1,2546.0,0.999]
[1748727478733,4.29549206,2546.1,2546.0,0.999]
[1748727479235,4.29558995,2546.1,2546.0,0.999]
[1748727479441,4.29559012,2546.1,2546.0,0.999]
[1748727479641,4.36714351,2546.1,2546.0,0.999]
[1748727479942,4.3671608,2546.1,2546.0,0.999]
[1748727480137,4.36716077,2546.1,2546.0,0.999]
[1748727480339,4.36732118,2546.1,2546.0,0.999]
[1748727480642,4.13603027,2546.1,2546.0,0.999]
[1748727480841,7.57513219,2546.1,2546.0,0.999]
[1748727481041,7.57513224,2546.1,2546.0,0.999]
[1748727481541,7.50357885,2546.1,2546.0,0.999]
[1748727481934,7.27227688,2546.1,2546.0,0.999]
[1748727482244,7.50379996,2546.1,2546.0,0.999]
[1748727482843,9.85745251,2546.1,2546.0,0.999]
[1748727483142,9.85745264,2546.1,2546.0,0.999]
[1748727483339,9.625892,2546.1,2546.0,0.999]
[1748727483544,9.85745323,2546.1,2546.0,0.999]
[1748727483744,9.85745429,2546.1,2546.0,0.999]
[1748727483945,9.625892,2546.1,2546.0,0.999]
[1748727484145,9.85745412,2546.1,2546.0,0.999]
[1748727484643,9.85745429,2546.1,2546.0,0.999]
[1748727485045,9.85745542,2546.1,2546.0,0.999]
[1748727485654,9.625892,2546.1,2546.0,0.999]
[1748727486246,9.85745522,2546.1,2546.0,0.999]
[1748727486446,9.85745517,2546.1,2546.0,0.999]
[1748727486647,9.625892,2546.1,2546.0,0.999]
[1748727487351,9.8574547,2546.1,2546.0,0.999]
[1748727487551,9.85745495,2546.1,2546.0,0.999]
[1748727487753,9.625892,2546.1,2546.0,0.999]
[1748727487953,9.85745435,2546.1,2546.0,0.999]
[1748727488147,9.625892,2546.1,2546.0,0.999]
[1748727488344,9.85745476,2546.1,2546.0,0.999]
[1748727488549,9.85745508,2546.1,2546.0,0.999]
[1748727488749,9.625892,2546.1,2546.0,0.999]
[1748727489049,9.85745504,2546.1,2546.0,0.999]
[1748727489654,9.8574556,2546.1,2546.0,0.999]
[1748727489854,9.8574556,2546.1,2545.2,3.2078]